fUSD/lending_fUSD_20240503
["ID","MTS","AMOUNT","RATE_DAILY","PERIOD"]
[325312725,1714699840355,-500.0,0.00025293,2]
[325312726,1714699840364,-500.0,0.00025293,2]
[325312727,1714699840374,-500.0,0.00025293,2]
[325312728,1714699840383,-500.0,0.00025293,2]
[325312729,1714699840393,-500.0,0.00025293,2]
[325312730,1714699840403,-500.0,0.00025293,2]
[325312731,1714699840413,-500.0,0.00025293,2]
[325312732,1714699840422,-500.0,0.00025293,2]
[325312733,1714699840431,-500.0,0.00025293,2]
[325312734,1714699840440,-500.0,0.00025293,2]
[325312735,1714699840450,-500.0,0.00025293,2]
[325312736,1714699840459,-500.0,0.00025293,2]
[325312737,1714699840469,-500.0,0.00025293,2]
[325312738,1714699840478,-500.0,0.00025293,2]
[325312739,1714699840489,-500.0,0.00025293,2]
[325312740,1714699840502,-500.0,0.00025293,2]
[325312741,1714699840512,-500.0,0.00025293,2]
[325312742,1714699840524,-500.0,0.00025293,2]
[325312743,1714699840534,-500.0,0.00025293,2]
[325312744,1714699840545,-500.0,0.00025293,2]
[325312745,1714699840554,-500.0,0.00025293,2]
[325312746,1714699840564,-500.0,0.00025293,2]
[325312747,1714699840575,-500.0,0.00025293,2]
[325312748,1714699840584,-500.0,0.00025293,2]
[325312749,1714699840594,-500.0,0.00025293,2]
[325312750,1714699840603,-500.0,0.00025293,2]
[325312751,1714699840612,-500.0,0.00025293,2]
[325312752,1714699840622,-500.0,0.00025293,2]
[325312753,1714699840631,-500.0,0.00025293,2]
[325312754,1714699840641,-500.0,0.00025293,2]
[325312755,1714699840651,-500.0,0.00025293,2]
[325312756,1714699840660,-500.0,0.00025293,2]
[325312757,1714699840670,-500.0,0.00025293,2]
[325312758,1714699840679,-500.0,0.00025293,2]
[325312759,1714699840689,-500.0,0.00025293,2]
[325312760,1714699840698,-500.0,0.00025293,2]
[325312761,1714699840708,-500.0,0.00025293,2]
[325312762,1714699840717,-500.0,0.00025293,2]
[325312763,1714699840729,-500.0,0.00025293,2]
[325312764,1714699840739,-500.0,0.00025293,2]
[325312765,1714699840750,-500.0,0.00025293,2]
[325312766,1714699840759,-500.0,0.00025293,2]
[325312767,1714699840771,-939.79,0.000253,2]
[325312768,1714699840780,-718.09,0.00025474,2]
[325312769,1714699840789,-161.94,0.00025513,120]
[325312770,1714699840798,-870.18759989,0.00025742,2]
[325312771,1714699840807,-650.0,0.00026,3]
[325312772,1714699840818,-888.0,0.00026027,4]
[325312773,1714699840828,-159.46306348,0.00026233,2]
[325312774,1714699840837,-151.4079542,0.000263,2]
[325312775,1714699840847,-452.42409087,0.00026384,2]
[325312776,1714699840856,-396.311705,0.000265,2]
[325312777,1714699840866,-150.0,0.000265,5]
[325312778,1714699840876,-158.18617805,0.00026793,2]
[325312779,1714699840885,-150.0,0.00027,5]
[325312780,1714699840895,-888.0,0.00027397,6]
[325312781,1714699840904,-667.36590706,0.00027397,2]
[325312782,1714699840913,-200.0,0.00027397,2]
[325312783,1714699840929,-150.0,0.00027397,2]
[325312784,1714699840938,-1315.77,0.000274,2]
[325312785,1714699840947,-151.4079542,0.00027417,2]
[325312786,1714699840956,-150.0,0.000275,5]
[325312787,1714699840966,-210.35695248,0.00027527,2]
[325312788,1714699840975,-285.0339526,0.00027698,2]
[325312789,1714699840984,-1978.69094241,0.00027698,2]
[325312790,1714699840993,-1009.0,0.000277,2]
[325312791,1714699841002,-194.86,0.00027714,2]
[325312792,1714699841011,-160.8,0.00027743,2]
[325312793,1714699841022,-161.65,0.00027764,120]
[325312794,1714699841032,-718.09,0.00027789,2]
[325312795,1714699841041,-175.74812427,0.00027799,3]
[325312796,1714699841050,-31629.83730253,0.00027821,2]
[325312797,1714699841059,-939.79,0.000279,2]
[325312798,1714699841068,-158.18617805,0.00027944,2]
[325312799,1714699841077,-442.02193,0.00028,2]
[325312800,1714699841087,-150.0,0.00028,5]
[325312801,1714699841096,-200.06662384,0.00028,2]
[325312802,1714699841106,-167.44171008,0.00028024,2]
[325312803,1714699841116,-151.0,0.00028058,2]
[325312804,1714699841126,-152.0,0.00028139,3]
[325312805,1714699841136,-1221.59250652,0.0002825,2]
[325312806,1714699841146,-150.0,0.00028255,2]
[325312807,1714699841156,-150.0,0.00028255,2]
[325312808,1714699841166,-150.0,0.00028255,2]
[325312809,1714699841175,-346.76334279,0.00028259,2]
[325312810,1714699841184,-150.0,0.00028259,2]
[325312811,1714699841194,-150.0,0.00028259,2]
[325312812,1714699841204,-150.0,0.00028261,2]
[325312813,1714699841213,-150.0,0.00028269,2]
[325312814,1714699841223,-150.0,0.00028269,2]
[325312815,1714699841233,-150.0,0.00028273,2]
[325312816,1714699841242,-150.0,0.00028273,2]
[325312817,1714699841252,-150.0,0.00028274,2]
[325312818,1714699841262,-150.0,0.00028276,2]
[325312819,1714699841273,-150.0,0.00028277,2]
[325312820,1714699841282,-1000.0,0.00028278,10]
[325312821,1714699841291,-200.0,0.00028278,7]
[325312822,1714699841300,-500.0,0.00028278,2]
[325312823,1714699841309,-200.0,0.00028278,2]
[325312824,1714699841318,-150.0,0.00028278,2]
[325312825,1714699841327,-150.0,0.00028281,2]
[325312826,1714699841337,-150.0,0.00028282,2]
[325312827,1714699841347,-150.0,0.00028283,2]
[325312828,1714699841356,-150.0,0.00028284,2]
[325312829,1714699841365,-150.0,0.00028289,2]
[325312830,1714699841375,-150.0,0.0002829,2]
[325312831,1714699841384,-150.0,0.00028295,2]
[325312832,1714699841393,-150.0,0.00028299,2]
[325312833,1714699841402,-150.0,0.00028301,2]
[325312834,1714699841412,-150.0,0.00028302,2]
[325312835,1714699841421,-150.0,0.00028302,2]
[325312836,1714699841430,-150.0,0.00028303,2]
[325312837,1714699841440,-150.0,0.00028304,2]
[325312838,1714699841449,-150.0,0.00028307,2]
[325312839,1714699841459,-150.0,0.00028307,2]
[325312840,1714699841468,-150.0,0.00028308,2]
[325312841,1714699841477,-150.0,0.00028308,2]
[325312842,1714699841489,-150.0,0.00028309,2]
[325312843,1714699841499,-870.18759989,0.00028311,2]
[325312844,1714699841508,-150.0,0.00028311,2]
[325312845,1714699841519,-150.0,0.00028313,2]
[325312846,1714699841528,-150.0,0.00028315,2]
[325312847,1714699841538,-150.0,0.00028317,2]
[325312848,1714699841547,-150.0,0.00028322,2]
[325312849,1714699841557,-150.0,0.00028325,2]
[325312850,1714699841570,-150.0,0.00028328,2]
[325312851,1714699841581,-150.0,0.00028328,2]
[325312852,1714699841591,-150.0,0.00028329,2]
[325312853,1714699841601,-155.89246652,0.0002833,2]
[325312854,1714699841611,-150.0,0.00028331,2]
[325312855,1714699841621,-150.0,0.00028333,2]
[325312856,1714699841630,-150.0,0.00028335,2]
[325312857,1714699841639,-150.0,0.00028352,2]
[325312858,1714699841649,-150.0,0.00028356,2]
[325312859,1714699841658,-150.0,0.00028358,2]
[325312860,1714699842006,-167.70552935,0.00028364,2]
[325312861,1714699842021,-150.0,0.00028367,2]
[325312862,1714699842034,-150.0,0.00028369,2]
[325312863,1714699842044,-150.0,0.00028371,2]
[325312864,1714699842054,-150.0,0.00028374,2]
[325312865,1714699842064,-150.0,0.00028375,2]
[325312866,1714699842073,-150.0,0.00028376,2]
[325312867,1714699842083,-150.0,0.00028378,2]
[325312868,1714699842093,-150.0,0.00028379,2]
[325312869,1714699842102,-150.0,0.00028387,2]
[325312870,1714699842112,-150.0,0.00028388,2]
[325312871,1714699842122,-150.0,0.00028388,2]
[325312872,1714699842131,-150.0,0.00028392,2]
[325312873,1714699842141,-150.0,0.00028395,2]
[325312874,1714699842151,-150.0,0.00028399,2]
[325312875,1714699842161,-1773.27,0.000284,2]
[325312876,1714699842171,-150.0,0.000284,2]
[325312877,1714699842182,-150.0,0.00028401,2]
[325312878,1714699842192,-150.0,0.00028402,2]
[325312879,1714699842203,-150.0,0.00028407,2]
[325312880,1714699842214,-150.0,0.00028409,2]
[325312881,1714699842224,-150.0,0.00028412,2]
[325312882,1714699842234,-150.0,0.00028415,2]
[325312883,1714699842244,-150.0,0.0002842,2]
[325312884,1714699842254,-150.0,0.00028422,2]
[325312885,1714699842264,-150.0,0.00028423,2]
[325312886,1714699842281,-150.0,0.0002843,2]
[325312887,1714699842291,-150.0,0.00028432,2]
[325312888,1714699842301,-150.0,0.00028434,2]
[325312889,1714699842310,-150.0,0.00028434,2]
[325312890,1714699842320,-150.0,0.00028436,2]
[325312891,1714699842329,-150.0,0.0002844,2]
[325312892,1714699842339,-150.0,0.00028441,2]
[325312893,1714699842349,-150.0,0.00028441,2]
[325312894,1714699842358,-150.0,0.00028443,2]
[325312895,1714699842368,-150.0,0.00028445,2]
[325312896,1714699842378,-150.0,0.00028449,2]
[325312897,1714699842387,-150.0,0.0002845,2]
[325312898,1714699842396,-150.0,0.00028451,2]
[325312899,1714699842406,-150.0,0.00028452,2]
[325312900,1714699842416,-150.0,0.00028454,2]
[325312901,1714699842425,-150.0,0.00028454,2]
[325312902,1714699842435,-150.0,0.00028467,2]
[325312903,1714699842444,-150.0,0.00028467,2]
[325312904,1714699842454,-150.0,0.0002847,2]
[325312905,1714699842464,-150.0,0.00028483,2]
[325312906,1714699842475,-150.0,0.00028484,2]
[325312907,1714699842495,-150.0,0.00028485,2]
[325312908,1714699842513,-150.0,0.0002849,2]
[325312909,1714699842537,-150.0,0.00028496,2]
[325312910,1714699842548,-150.0,0.00028497,2]
[325312911,1714699842557,-484.0,0.000285,12]
[325312912,1714699842567,-342.0,0.000285,2]
[325312913,1714699842576,-652.8,0.000285,2]
[325312914,1714699842585,-2000.0,0.000285,2]
[325312915,1714699842595,-2000.0,0.000285,2]
[325312916,1714699842604,-200.0,0.000285,2]
[325312917,1714699842613,-150.0,0.000285,5]
[325312918,1714699842623,-1000.0,0.000285,2]
[325312919,1714699842632,-1341.01847567,0.00028506,2]
[325312920,1714699842642,-150.01,0.00028506,2]
[325312921,1714699842651,-150.0,0.00028507,2]
[325312922,1714699842661,-150.0,0.00028508,2]
[325312923,1714699842670,-150.0,0.00028509,2]
[325312924,1714699842679,-2000.0,0.0002851,2]
[325312925,1714699842688,-2000.0,0.0002851,2]
[325312926,1714699842698,-150.0,0.00028511,2]
[325312927,1714699842707,-150.0,0.00028512,2]
[325312928,1714699842717,-150.0,0.00028516,2]
[325312929,1714699842726,-150.0,0.00028519,10]
[325312930,1714699842735,-150.0,0.00028519,10]
[325312931,1714699842745,-150.0,0.00028519,10]
[325312932,1714699842754,-150.0,0.00028519,2]
[325312933,1714699842764,-150.0,0.0002852,2]
[325312934,1714699842778,-2000.0,0.0002852,2]
[325312935,1714699842787,-2000.0,0.0002852,2]
[325312936,1714699842796,-1236.0006881,0.0002852,2]
[325312937,1714699842806,-85455.6155866,0.0002852,2]
[325312938,1714699842815,-391.19040958,0.0002852,2]
[325312939,1714699842824,-7473.5573213,0.0002852,2]
[325312940,1714699842833,-150.0,0.00028522,10]
[325312941,1714699842842,-150.0,0.00028522,10]
[325312942,1714699842852,-150.0,0.00028522,10]
[325312943,1714699842861,-1000.0,0.00028524,2]
[325312944,1714699842872,-116290.21976213,0.00028527,30]
[325312945,1714699842889,-715444.38125141,0.00028527,30]
[325312946,1714699842900,-5020.28156159,0.00028527,30]
[325312947,1714699842946,-5169.77351889,0.00028527,30]
[325312948,1714699842958,-2775.3758179,0.00028527,30]
[325312949,1714699842970,-11827.7989975,0.00028527,30]
[325312965,1714699843303,-439.015,0.00021746,2]
[325312966,1714699843312,-325.8012,0.00028527,30]
[325312972,1714699843504,-1487.92434299,0.00028527,30]
[325312973,1714699843516,-387.72733961,0.00028527,30]
[325312974,1714699843529,-708.505,0.00028527,30]
[325312975,1714699843541,-804.72875008,0.00028527,30]
[325312976,1714699843553,-1277.08883032,0.00028527,30]
[325312977,1714699843570,-257.14700287,0.00028527,30]
[325312978,1714699843582,-279.6361457,0.00028527,30]
[325312979,1714699843594,-1071.144,0.00028527,30]
[325312980,1714699843605,-489.47653646,0.00028527,30]
[325312981,1714699843617,-258.11,0.00028527,30]
[325312982,1714699843688,-2376.49398391,0.00028527,30]
[325312984,1714699844893,-310.472,0.00021746,2]
[325312985,1714699844903,-102143.41444433,0.00028527,30]
[325312986,1714699844936,-1910.0,0.00028527,30]
[325312987,1714699844948,-277.08774992,0.00028527,30]
[325312988,1714699844959,-659.549999,0.00028527,30]
[325312989,1714699844986,-1257.83340614,0.00028527,30]
[325312990,1714699844998,-1103.73407752,0.00028527,30]
[325312991,1714699845010,-1194.66864627,0.00028527,30]
[325312992,1714699845024,-427.85886747,0.00028527,30]
[325312997,1714699846530,-454.6312805,0.00028527,30]
[325312998,1714699846542,-680.44298611,0.00028527,30]
[325312999,1714699846555,-909.13918387,0.00028527,30]
[325313000,1714699846690,-741.33942584,0.00028527,30]
[325313001,1714699846748,224.26214577,0.000104,2]
[325313003,1714699867160,1779.96114787,0.000104,2]
[325313006,1714700097428,336.05342001,0.00012,4]
[325313033,1714701031631,-342.418159,0.00012736,2]
[325313034,1714701031641,-156.42863451,0.000128,2]
[325313035,1714701031651,-150.0,0.00012899,2]
[325313036,1714701031661,-10983.03129154,0.000129,2]
[325313037,1714701031674,-3041.65688029,0.000129,2]
[325313038,1714701031687,-613.58349975,0.000129,2]
[325313039,1714701031698,-2970.45636603,0.000129,2]
[325313040,1714701031711,-4562.00117892,0.000129,2]
[325313041,1714701031767,-1722.88429448,0.000129,2]
[325313042,1714701031778,-299.99,0.000129,2]
[325313043,1714701031790,-1578.55756815,0.000129,2]
[325313044,1714701031891,-661.68277074,0.000129,2]
[325313045,1714701031902,-1139.88404979,0.000129,2]
[325313046,1714701031918,-482.99531256,0.000129,2]
[325313047,1714701031929,-257.69726089,0.000129,2]
[325313163,1714701037681,-5149.55192686,0.000129,2]
[325313164,1714701037690,-8898.7501,0.000129,2]
[325313165,1714701037700,-167.45950607,0.00017547,2]
[325313166,1714701037711,-156.29678189,0.00017767,2]
[325313167,1714701037720,-499.99,0.00017808,2]
[325313168,1714701037729,-150.0,0.00017973,2]
[325313169,1714701037740,-450.0,0.00018,3]
[325313170,1714701037750,-155.61163013,0.00018756,2]
[325313171,1714701037759,-300.0,0.000188,2]
[325313172,1714701037768,-150.99,0.000188,2]
[325313173,1714701037778,-155.36663576,0.00019162,2]
[325313174,1714701037787,-155.36663576,0.00019554,2]
[325313175,1714701037797,-500.0,0.0002,3]
[325313176,1714701037806,-156.42863451,0.0002057,2]
[325313177,1714701037815,-201.551681,0.00020592,2]
[325313178,1714701037824,-463.803,0.00021498,2]
[325313179,1714701037838,-3145.205,0.00021498,2]
[325313180,1714701037847,-2457.762,0.00021498,2]
[325313181,1714701037857,-422.776,0.00021498,2]
[325313182,1714701037866,-150.402,0.00021498,2]
[325313183,1714701037876,-1481.855,0.00021498,2]
[325313184,1714701037885,-444.487,0.00021498,2]
[325313185,1714701037895,-1648.529,0.00021498,2]
[325313186,1714701037904,-215.0,0.00021498,2]
[325313187,1714701037915,-150.347,0.00021498,2]
[325313188,1714701037925,-1144.085,0.00021498,2]
[325313189,1714701037934,-150.0,0.00021498,2]
[325313190,1714701037943,-159.016,0.00021498,2]
[325313191,1714701037952,-152.265,0.00021498,2]
[325313192,1714701037961,-200.48,0.00021644,2]
[325313193,1714701037971,-155.42,0.00021644,2]
[325313194,1714701037980,-1000.0,0.00022,2]
[325313195,1714701037990,-223.0,0.00022,2]
[325313196,1714701037999,-352.0,0.00022,2]
[325313197,1714701038009,-158.18617805,0.00022676,2]
[325313198,1714701038019,-740.0,0.000228,3]
[325313199,1714701038028,-200.0,0.00023157,2]
[325313200,1714701038038,-1016.964264,0.00023157,2]
[325313201,1714701038047,-500.0,0.00023157,2]
[325313202,1714701038056,-200.0,0.00023157,2]
[325313203,1714701038066,-166.19466781,0.00023834,2]
[325313204,1714701038076,-462.0,0.00024498,2]
[325313205,1714701038088,-161.84,0.00024615,2]
[325313206,1714701038099,-666.0,0.00024657,2]
[325313207,1714701038108,-556.46,0.00024885,2]
[325313208,1714701038117,-155.0,0.00025,2]
[325313209,1714701038127,-5000.0,0.00025,2]
[325313210,1714701038139,-250.0,0.00025042,2]
[325313211,1714701038148,-548.08,0.00025065,2]
[325313212,1714701038157,-23900.0,0.00025099,2]
[325313213,1714701038166,-250.0,0.00025104,2]
[325313214,1714701038176,-150.0,0.00025116,2]
[325313215,1714701038186,-1529.01315991,0.000252,2]
[325313216,1714701038196,-158.18617805,0.00025483,2]
[325313217,1714701038206,-168.29,0.00025675,2]
[325313218,1714701038215,-176.45728629,0.00026207,2]
[325313219,1714701038224,-396.433576,0.000265,2]
[325313220,1714701038234,-154.862701,0.000265,5]
[325313221,1714701038243,-150.0,0.00027,5]
[325313222,1714701038252,-184.36,0.00027216,120]
[325313223,1714701038262,-668.67422219,0.00027397,2]
[325313224,1714701038271,-150.39,0.00027397,2]
[325313225,1714701038280,-150.0,0.000275,5]
[325313226,1714701038290,-1005.0,0.000277,2]
[325313227,1714701038299,-161.050307,0.00027848,4]
[325313228,1714701038308,-183.050307,0.00027948,6]
[325313229,1714701038317,-158.18617805,0.00027959,2]
[325313230,1714701038327,-1000.0,0.00028,2]
[325313231,1714701038337,-1000.0,0.00028,2]
[325313232,1714701038346,-1000.0,0.00028,2]
[325313233,1714701038355,-1000.0,0.00028,2]
[325313234,1714701038364,-1000.0,0.00028,2]
[325313235,1714701038374,-1000.0,0.00028,2]
[325313236,1714701038384,-1000.0,0.00028,2]
[325313237,1714701038394,-1000.0,0.00028,2]
[325313238,1714701038404,-714.506363,0.00028,2]
[325313239,1714701038413,-150.0,0.00028,5]
[325313240,1714701038423,-181.05031,0.00028048,10]
[325313241,1714701038432,-151.22158807,0.00028058,2]
[325313242,1714701038442,-16300.46649277,0.00028072,2]
[325313243,1714701038451,-199.05031,0.00028148,6]
[325313244,1714701038460,-548.08,0.00028198,2]
[325313245,1714701038470,-157.99467701,0.00028234,2]
[325313246,1714701038479,-1244.55782495,0.0002825,2]
[325313247,1714701038490,-150.0,0.00028257,2]
[325313248,1714701038499,-150.0,0.00028258,2]
[325313249,1714701038509,-150.0,0.00028264,2]
[325313250,1714701038518,-150.0,0.00028265,2]
[325313251,1714701038527,-150.0,0.00028268,2]
[325313252,1714701038536,-150.0,0.00028269,2]
[325313253,1714701038545,-150.0,0.00028269,2]
[325313254,1714701038555,-150.0,0.00028271,2]
[325313255,1714701038564,-150.0,0.00028271,2]
[325313256,1714701038573,-150.0,0.00028277,2]
[325313257,1714701038582,-150.0,0.00028277,2]
[325313258,1714701038591,-150.0,0.00028277,2]
[325313259,1714701038600,-150.0,0.00028286,2]
[325313260,1714701038609,-150.0,0.00028288,2]
[325313261,1714701038619,-150.0,0.00028294,2]
[325313262,1714701038627,-150.0,0.00028294,2]
[325313263,1714701038636,-150.0,0.00028295,2]
[325313264,1714701038645,-150.0,0.00028297,2]
[325313265,1714701038655,-150.0,0.00028299,2]
[325313266,1714701038664,-150.0,0.000283,2]
[325313267,1714701038674,-150.0,0.00028301,2]
[325313268,1714701038683,-150.0,0.00028302,2]
[325313269,1714701038692,-150.0,0.00028303,2]
[325313270,1714701038702,-150.0,0.00028303,2]
[325313271,1714701038711,-150.0,0.00028304,2]
[325313272,1714701038719,-150.0,0.00028306,2]
[325313273,1714701038728,-150.0,0.00028308,2]
[325313274,1714701038737,-150.0,0.00028308,2]
[325313275,1714701038747,-150.0,0.00028309,2]
[325313276,1714701038756,-150.0,0.00028309,2]
[325313277,1714701038765,-150.0,0.0002831,2]
[325313278,1714701038774,-157.28620302,0.00028311,2]
[325313279,1714701038783,-150.0,0.00028318,2]
[325313280,1714701038792,-150.0,0.00028318,2]
[325313281,1714701038801,-150.0,0.00028318,2]
[325313282,1714701038810,-150.0,0.00028322,2]
[325313283,1714701038819,-163.15,0.00028322,2]
[325313284,1714701038829,-150.0,0.00028324,2]
[325313285,1714701038839,-150.0,0.00028325,2]
[325313286,1714701038852,-150.0,0.00028328,2]
[325313287,1714701038861,-150.0,0.00028329,2]
[325313288,1714701038871,-150.0,0.0002833,2]
[325313289,1714701038881,-331.163915,0.00028331,2]
[325313290,1714701038890,-150.0,0.00028331,2]
[325313291,1714701038900,-177.85419875,0.00028332,2]
[325313292,1714701038909,-155.22563552,0.00028332,2]
[325313293,1714701038920,-200.38405537,0.00028332,2]
[325313294,1714701038929,-12232.2737,0.00028332,2]
[325313295,1714701038939,-112188.7866,0.00028332,2]
[325313296,1714701038948,-150.0,0.00028334,2]
[325313297,1714701038958,-150.0,0.00028338,2]
[325313298,1714701038967,-181.41355627,0.00028339,2]
[325313299,1714701038976,-156.42863451,0.00028339,2]
[325313300,1714701038992,-152.10735946,0.00028339,2]
[325313301,1714701039001,-210.49567394,0.00028339,2]
[325313302,1714701039010,-826.86804758,0.00028339,2]
[325313303,1714701039019,-325.23584102,0.00028339,2]
[325313304,1714701039028,-3354.80526323,0.00028339,2]
[325313305,1714701039037,-5675.97671985,0.00028339,2]
[325313306,1714701039047,-150.0,0.0002834,2]
[325313307,1714701039056,-150.0,0.00028343,2]
[325313308,1714701039065,-150.0,0.00028345,2]
[325313309,1714701039074,-150.0,0.00028346,2]
[325313310,1714701039084,-150.0,0.00028348,2]
[325313311,1714701039093,-150.0,0.00028348,2]
[325313312,1714701039102,-185.71227034,0.00028354,2]
[325313313,1714701039112,-150.0,0.00028363,2]
[325313314,1714701039121,-150.0,0.00028367,2]
[325313315,1714701039130,-150.0,0.00028367,2]
[325313316,1714701039139,-362.34616941,0.00028369,2]
[325313317,1714701039149,-150.0,0.00028371,2]
[325313318,1714701039158,-150.0,0.00028372,2]
[325313319,1714701039168,-150.0,0.00028373,2]
[325313320,1714701039177,-150.0,0.00028373,2]
[325313321,1714701039186,-150.0,0.00028373,2]
[325313322,1714701039195,-150.0,0.00028373,2]
[325313323,1714701039205,-150.0,0.00028383,2]
[325313324,1714701039214,-150.0,0.00028385,2]
[325313325,1714701039223,-150.0,0.00028386,2]
[325313326,1714701039233,-150.0,0.00028388,2]
[325313327,1714701039244,-150.0,0.00028388,2]
[325313328,1714701039253,-150.0,0.00028389,2]
[325313329,1714701039263,-150.0,0.0002839,2]
[325313330,1714701039272,-150.0,0.0002839,2]
[325313331,1714701039283,-150.0,0.00028392,2]
[325313332,1714701039292,-150.0,0.00028395,2]
[325313333,1714701039301,-150.0,0.00028399,2]
[325313334,1714701039310,-450.0,0.000284,5]
[325313335,1714701039320,-150.0,0.00028406,2]
[325313336,1714701039330,-150.0,0.00028409,2]
[325313337,1714701039339,-150.0,0.00028415,2]
[325313338,1714701039348,-150.0,0.00028417,2]
[325313339,1714701039357,-150.0,0.00028423,2]
[325313340,1714701039367,-150.0,0.00028424,2]
[325313341,1714701039376,-47953.1913,0.00028427,2]
[325313342,1714701039386,-163.15,0.00028429,2]
[325313343,1714701039396,-150.0,0.00028432,2]
[325313344,1714701039405,-150.0,0.00028432,2]
[325313345,1714701039415,-150.0,0.00028439,2]
[325313346,1714701039427,-484.24661365,0.00028439,2]
[325313347,1714701039436,-177.56537532,0.00028439,2]
[325313348,1714701039445,-52943.00409836,0.00028439,5]
[325313349,1714701039459,-438.72108303,0.00028439,5]
[325313350,1714701039473,-636.05384088,0.00028439,5]
[325313351,1714701039486,-946.67592046,0.00028439,5]
[325313352,1714701039536,-3232.3,0.00028439,5]
[325313353,1714701039549,-22592.80274124,0.00028439,5]
[325313354,1714701039592,-1759.87504437,0.00028439,5]
[325313355,1714701039605,-278.278,0.00028439,5]
[325313356,1714701039651,-371583.32178387,0.00028439,5]
[325313357,1714701039661,-343861.05946754,0.00028439,30]
[325313358,1714701039673,-712.29463692,0.00028439,30]
[325313359,1714701039686,-580.79166872,0.00028439,30]
[325313360,1714701039741,-353.55961219,0.00028439,30]
[325313361,1714701039752,-770.101539,0.00028439,30]
[325313373,1714701040360,-150.0,0.00028257,2]
[325313375,1714701040371,-150.0,0.0002827,2]
[325313377,1714701040381,-150.0,0.00028272,2]
[325313379,1714701040391,-150.0,0.00028291,2]
[325313381,1714701040400,-150.0,0.00028294,2]
[325313383,1714701040410,-150.0,0.000283,2]
[325313385,1714701040419,-150.0,0.00028305,2]
[325313387,1714701040429,-150.0,0.00028305,2]
[325313389,1714701040438,-150.0,0.00028306,2]
[325313391,1714701040447,-150.0,0.00028308,2]
[325313393,1714701040457,-150.0,0.00028323,2]
[325313395,1714701040466,-150.0,0.00028333,2]
[325313397,1714701040476,-150.0,0.00028333,2]
[325313399,1714701040486,-150.0,0.00028335,2]
[325313401,1714701040495,-150.0,0.00028344,2]
[325313403,1714701040504,-150.0,0.00028377,2]
[325313405,1714701040513,-150.0,0.0002838,2]
[325313407,1714701040523,-150.0,0.00028386,2]
[325313409,1714701040532,-150.0,0.00028395,2]
[325313411,1714701040542,-150.0,0.00028408,2]
[325313413,1714701040552,-150.0,0.0002841,2]
[325313415,1714701040562,-150.0,0.00028415,2]
[325313418,1714701040572,-150.0,0.00028425,2]
[325313420,1714701040581,-150.0,0.00028427,2]
[325313422,1714701040591,-150.0,0.00028429,2]
[325313424,1714701040600,-150.0,0.00028429,2]
[325313425,1714701040610,-150.0,0.0002843,2]
[325313428,1714701040619,-150.0,0.00028434,2]
[325313430,1714701040629,-261962.57162192,0.00028439,30]
[325313432,1714701040642,-31212.5833153,0.00028439,30]
[325313442,1714701040725,-150.0,0.00028389,2]
[325313444,1714701040736,-685.57372,0.00028439,30]